bitfinex/quotes_BTCUSD_20250602
["timestamp","ask_amount","ask_price","bid_price","bid_amount"]
[1748859272511,0.91504202,104660.0,104650.0,0.26920692]
[1748859272726,0.91504202,104660.0,104650.0,0.26027107]
[1748859272863,0.91504202,104660.0,104650.0,0.25071569]
[1748859273074,0.91504202,104660.0,104650.0,0.23471569]
[1748859273654,0.92459604,104660.0,104650.0,0.24427098]
[1748859273860,0.92459604,104660.0,104650.0,0.26027098]
[1748859274279,0.91504184,104660.0,104650.0,0.26027098]
[1748859274490,0.20064262,104670.0,104660.0,0.20064953]
[1748859274694,0.82921778,104670.0,104660.0,0.24240336]
[1748859274897,1.02029449,104670.0,104660.0,0.25195802]
[1748859275100,1.02029531,104670.0,104660.0,0.25195802]
[1748859275333,0.82921833,104670.0,104660.0,0.26151212]
[1748859275537,1.02984878,104670.0,104660.0,0.26151212]
[1748859275741,1.03940261,104670.0,104660.0,0.26151212]
[1748859276136,1.03940261,104670.0,104660.0,0.26451212]
[1748859276779,0.83877207,104670.0,104660.0,0.26451212]
[1748859277805,0.93404878,104670.0,104660.0,0.26451212]
[1748859278054,0.94360261,104670.0,104660.0,0.26451212]
[1748859278226,0.64068261,104670.0,104660.0,0.26451212]
[1748859278430,0.74297207,104670.0,104660.0,0.26451212]
[1748859279187,0.93404878,104670.0,104660.0,0.26451212]
[1748859279883,0.74293207,104670.0,104660.0,0.26451212]
[1748859280733,0.31243328,104670.0,104660.0,0.26451212]
[1748859280943,0.74293115,104670.0,104660.0,0.26451212]
[1748859281582,0.16019757,104680.0,104670.0,0.21973738]
[1748859281800,0.10535219,104680.0,104670.0,0.26159057]
[1748859282012,0.83868778,104680.0,104670.0,0.26159057]
[1748859283089,1.02974624,104680.0,104670.0,0.26159057]
[1748859283311,0.83868778,104680.0,104670.0,0.26159057]
[1748859283533,1.02974706,104680.0,104670.0,0.0157]
[1748859283753,1.02714205,104680.0,104670.0,0.2101841]
[1748859284202,0.81958322,104680.0,104670.0,0.21973757]
[1748859284418,1.01064168,104680.0,104670.0,0.21973757]
[1748859284628,0.81958258,104680.0,104670.0,0.24459076]
[1748859284840,0.83868796,104680.0,104670.0,0.25999076]
[1748859285094,0.83868796,104680.0,104670.0,0.25999085]
[1748859285336,0.83868796,104680.0,104670.0,0.25414404]
[1748859286009,0.82913522,104680.0,104670.0,0.25414404]
[1748859286217,0.83868796,104680.0,104670.0,0.25414404]
[1748859286423,0.81958258,104680.0,104670.0,0.25414404]
[1748859286624,0.82913522,104680.0,104670.0,0.25414404]
[1748859287055,0.83868796,104680.0,104670.0,0.25414404]
[1748859288063,0.84824079,104680.0,104670.0,0.25414404]
[1748859289004,1.03929925,104680.0,104670.0,0.24459085]
[1748859289778,1.03929925,104680.0,104670.0,0.23503757]
[1748859289985,1.02974697,104680.0,104670.0,0.22929094]
[1748859290402,1.02974697,104680.0,104670.0,0.23884422]
[1748859291359,0.82913568,104680.0,104670.0,0.23884358]
[1748859291535,0.82913568,104680.0,104670.0,0.25384358]
[1748859291536,0.73333568,104680.0,104670.0,0.25384358]
[1748859291741,0.73333568,104680.0,104670.0,0.26894358]
[1748859292342,0.72378294,104680.0,104670.0,0.26894358]
[1748859292509,0.73333568,104680.0,104670.0,0.26894358]
[1748859293389,0.41139003,104680.0,104670.0,0.26894358]
[1748859293564,0.42094249,104680.0,104670.0,0.26894358]
[1748859293897,0.41139003,104680.0,104670.0,0.26894358]
[1748859294107,0.4209424,104680.0,104670.0,0.26894358]
[1748859294336,0.41138994,104680.0,104670.0,0.26894358]
[1748859294542,0.87503712,104690.0,104680.0,0.23521612]
[1748859295154,0.07495928,104690.0,104680.0,0.23521612]
[1748859295377,0.78902858,104690.0,104680.0,0.25131612]
[1748859296821,0.79002858,104690.0,104680.0,0.25131612]
[1748859297235,0.47779722,104690.0,104680.0,0.22566384]
[1748859297442,0.47779722,104690.0,104680.0,0.21971612]
[1748859297643,0.47979722,104690.0,104680.0,0.21971612]
[1748859297818,0.47979722,104690.0,104680.0,0.23631612]
[1748859298023,0.47979713,104690.0,104680.0,0.23631612]
[1748859298821,0.48934895,104690.0,104680.0,0.23631612]
[1748859299207,0.47979713,104690.0,104680.0,0.23631612]
[1748859299427,0.47979713,104690.0,104680.0,0.25271612]
[1748859299428,0.46069385,104690.0,104680.0,0.25271612]
[1748859299633,0.47024522,104690.0,104680.0,0.25271612]
[1748859299874,0.47979677,104690.0,104680.0,0.25271612]
[1748859300025,0.4893485,104690.0,104680.0,0.25271612]
[1748859300207,0.47979677,104690.0,104680.0,0.25271612]
[1748859300803,0.6803888,104690.0,104680.0,0.23631612]
[1748859301010,0.48934859,104690.0,104680.0,0.23631612]
[1748859301212,0.4893485,104690.0,104680.0,0.23631612]
[1748859301546,0.49890032,104690.0,104680.0,0.21971612]
[1748859302874,0.4893485,104690.0,104680.0,0.21971612]
[1748859303108,0.68583807,104690.0,104680.0,0.19105846]
[1748859303309,0.21971593,104680.0,104670.0,0.21673018]
[1748859303516,0.21971593,104680.0,104660.0,0.2427029]
[1748859303517,0.01910629,104670.0,104660.0,0.2427029]
[1748859303695,0.42094413,104670.0,104660.0,0.34811149]
[1748859303892,0.44005115,104670.0,104660.0,0.34811149]
[1748859304102,0.4304975,104670.0,104660.0,0.32900383]
[1748859304293,0.43049814,104670.0,104660.0,0.22660418]
[1748859304491,1.01582904,104680.0,104670.0,0.21973711]
[1748859304712,1.00052876,104680.0,104670.0,0.21018392]
[1748859304887,1.0100815,104680.0,104670.0,0.21018392]
[1748859305104,1.01682904,104680.0,104670.0,0.2101841]
[1748859305757,1.01682904,104680.0,104670.0,0.21973766]
[1748859306510,1.01682904,104680.0,104670.0,0.2101841]
[1748859306714,0.6091963,104680.0,104670.0,0.2101841]
[1748859306966,0.9116763,104680.0,104670.0,0.21973766]
[1748859307135,0.9116763,104680.0,104670.0,0.22929113]
[1748859308132,0.9116763,104680.0,104670.0,0.2101841]
[1748859308992,0.9116763,104680.0,104670.0,0.21973766]
[1748859309458,0.9116763,104680.0,104670.0,0.2101841]
[1748859309659,0.9116763,104680.0,104670.0,0.20063045]
[1748859309863,0.9266763,104680.0,104670.0,0.20063045]
[1748859310065,0.9266763,104680.0,104670.0,0.19107671]
[1748859310480,0.9266763,104680.0,104670.0,0.20063045]
[1748859310698,0.01910721,104670.0,104660.0,0.2197581]
[1748859310907,0.42094505,104670.0,104660.0,0.2197581]
[1748859311325,0.42094468,104670.0,104660.0,0.2197581]
[1748859311509,0.43049833,104670.0,104660.0,0.2197581]
[1748859311943,0.43049833,104670.0,104660.0,0.2207581]
[1748859312157,0.44005207,104670.0,104660.0,0.2207581]
[1748859312644,0.44005207,104670.0,104660.0,0.2227581]
[1748859313374,0.63112878,104670.0,104660.0,0.213204]
[1748859313573,0.64752878,104670.0,104660.0,0.2227582]
[1748859313788,0.23613738,104670.0,104660.0,0.2323123]
[1748859313960,0.63797522,104670.0,104660.0,0.2323123]
[1748859314202,0.65708261,104670.0,104660.0,0.2323123]
[1748859314409,0.64068261,104670.0,104660.0,0.2323123]
[1748859314640,0.63112933,104670.0,104660.0,0.22275829]
[1748859315256,0.43049879,104670.0,104660.0,0.23231239]
[1748859315461,0.63112933,104670.0,104660.0,0.22275829]
[1748859316617,0.43049879,104670.0,104660.0,0.23231239]
[1748859316820,0.6215755,104670.0,104660.0,0.22275829]
[1748859317050,0.43049879,104670.0,104660.0,0.23231239]
[1748859317231,0.6215755,104670.0,104660.0,0.23231239]
[1748859317596,0.42094505,104670.0,104660.0,0.23231239]
[1748859317736,0.42094468,104670.0,104660.0,0.24791239]
[1748859317938,0.62157504,104670.0,104660.0,0.24791239]
[1748859318136,0.63112878,104670.0,104660.0,0.24791239]
[1748859319160,0.43049833,104670.0,104660.0,0.24791239]
[1748859319370,0.44005207,104670.0,104660.0,0.24791239]
[1748859319979,0.44005207,104670.0,104660.0,0.26331239]
[1748859320383,0.42094468,104670.0,104660.0,0.26331239]
[1748859320593,0.43049833,104670.0,104660.0,0.26331239]
[1748859320944,0.63112878,104670.0,104660.0,0.26331239]
[1748859321966,0.63112933,104670.0,104660.0,0.228804]
[1748859322171,0.63112933,104670.0,104660.0,0.24791249]
[1748859322319,0.63112933,104670.0,104660.0,0.213204]
[1748859322525,0.62157577,104670.0,104660.0,0.213204]
[1748859323398,0.63667577,104670.0,104660.0,0.19409497]
[1748859323601,0.62712212,104670.0,104660.0,0.213204]
[1748859323804,0.62712212,104670.0,104660.0,0.22275829]
[1748859324006,0.61202212,104670.0,104660.0,0.23855829]
[1748859324206,0.61202212,104670.0,104660.0,0.21320409]
[1748859325053,0.61202212,104670.0,104660.0,0.22275847]
[1748859325409,0.61202212,104670.0,104660.0,0.20364962]
[1748859325620,1.12287239,104670.0,104660.0,0.003]
[1748859326392,0.34789171,104670.0,104660.0,0.003]
[1748859326590,1.24742169,104670.0,104660.0,0.003]
[1748859327169,1.24742169,104670.0,104660.0,0.002]
[1748859327374,1.24742169,104670.0,104640.0,0.24575668]
[1748859327375,0.21977883,104650.0,104640.0,0.26155668]
[1748859327527,0.92385667,104650.0,104640.0,0.25200066]
[1748859327734,0.92385667,104650.0,104640.0,0.27111297]
[1748859328671,0.92385667,104650.0,104640.0,0.27159859]
[1748859329021,0.92385667,104650.0,104640.0,0.27459767]
[1748859329235,0.93341224,104650.0,104640.0,0.27759767]
[1748859329449,0.9429679,104650.0,104640.0,0.27759767]
[1748859329857,0.9429679,104650.0,104640.0,0.26804174]
[1748859331536,0.3309056,104650.0,104640.0,0.27759767]
[1748859331732,0.41703784,104660.0,104640.0,0.27759767]
[1748859331991,0.60772345,104660.0,104650.0,0.24172409]
[1748859332185,0.02866304,104660.0,104650.0,0.25127911]
[1748859332393,0.42618304,104660.0,104650.0,0.25127911]
[1748859332596,0.83757553,104660.0,104650.0,0.25127911]
[1748859332774,1.03822524,104660.0,104650.0,0.25127911]
[1748859333420,1.03822524,104660.0,104650.0,0.23507911]
[1748859333862,1.03822524,104660.0,104650.0,0.23707911]
[1748859334285,1.03822524,104660.0,104650.0,0.22752409]
[1748859334408,0.44005553,104660.0,104650.0,0.23707929]
[1748859334627,0.44005553,104660.0,104650.0,0.24663431]
[1748859334628,0.83753553,104660.0,104650.0,0.24663431]
[1748859334829,0.59703264,104660.0,104650.0,0.24763431]
[1748859335255,0.78812761,104660.0,104650.0,0.24763431]
[1748859335616,0.59703264,104660.0,104650.0,0.24763431]
[1748859335849,0.19955264,104660.0,104650.0,0.24763431]
[1748859336047,0.59703264,104660.0,104650.0,0.24763431]
[1748859336221,0.6161013,104660.0,104650.0,0.24763431]
[1748859336858,0.807196,104660.0,104650.0,0.24763431]
[1748859337061,0.81675065,104660.0,104650.0,0.24763431]
[1748859338403,0.82630539,104660.0,104650.0,0.24763431]
[1748859339805,0.82534939,104660.0,104650.0,0.24763431]
[1748859341055,0.82534939,104660.0,104650.0,0.23233431]
[1748859342390,0.62469968,104660.0,104650.0,0.23233431]
[1748859342604,0.61514503,104660.0,104650.0,0.24833431]
[1748859342813,0.61506503,104660.0,104650.0,0.24833431]
[1748859343220,0.81571465,104660.0,104650.0,0.24833431]
[1748859344615,0.81571465,104660.0,104650.0,0.23877929]
[1748859344791,0.82526939,104660.0,104650.0,0.2483344]
[1748859345587,0.82526939,104660.0,104650.0,0.26624491]
[1748859346025,0.82526939,104660.0,104650.0,0.27520017]
[1748859346260,0.61506503,104660.0,104650.0,0.25728966]
[1748859346463,0.61506503,104660.0,104650.0,0.26684495]
[1748859346618,0.61506503,104660.0,104650.0,0.29147267]
[1748859346963,0.80616,104660.0,104650.0,0.28475602]
[1748859347179,0.81571474,104660.0,104650.0,0.29147267]
[1748859347596,0.81571474,104660.0,104650.0,0.29147269]
[1748859349098,0.81571474,104660.0,104650.0,0.29147352]
[1748859349378,0.81571474,104660.0,104650.0,0.273562]
[1748859349583,0.81571474,104660.0,104650.0,0.29147389]
[1748859349811,0.81571474,104660.0,104650.0,0.29147403]
[1748859350013,0.81571474,104660.0,104650.0,0.29147421]
[1748859350206,0.81571474,104660.0,104650.0,0.26684536]
[1748859350428,0.1048741,104660.0,104650.0,0.29147421]
[1748859350591,0.83733517,104660.0,104650.0,0.29147421]
[1748859350789,0.83733517,104660.0,104650.0,0.26460638]
[1748859351116,0.83733517,104660.0,104650.0,0.27580033]
[1748859351319,0.83733517,104660.0,104650.0,0.29147237]
[1748859351731,1.02843014,104660.0,104650.0,0.29147237]
[1748859351947,1.03798479,104660.0,104650.0,0.29147207]
[1748859352345,1.03798479,104660.0,104650.0,0.28475554]
[1748859352557,1.03798479,104660.0,104650.0,0.28251662]
[1748859352762,1.03798479,104660.0,104650.0,0.29147196]
[1748859352917,1.02843069,104660.0,104650.0,0.25636165]
[1748859353306,1.02843069,104660.0,104650.0,0.23845096]
[1748859353529,1.02843069,104660.0,104650.0,0.25636166]
[1748859353734,0.83733572,104660.0,104650.0,0.22277911]
[1748859353934,0.83733572,104660.0,104650.0,0.25636167]
[1748859354619,0.83733572,104660.0,104650.0,0.24964522]
[1748859354833,0.83733572,104660.0,104650.0,0.238451]
[1748859355137,0.82778107,104660.0,104650.0,0.22277911]
[1748859355340,0.82778107,104660.0,104650.0,0.25636174]
[1748859355626,0.82778107,104660.0,104650.0,0.24068991]
[1748859355843,0.82778107,104660.0,104650.0,0.25636186]
[1748859356066,0.52582107,104660.0,104650.0,0.27226185]
[1748859356266,0.82770107,104660.0,104650.0,0.27226184]
[1748859356496,0.82770107,104660.0,104650.0,0.2476345]
[1748859356707,0.82770107,104660.0,104650.0,0.27226185]
[1748859356927,0.81814651,104660.0,104650.0,0.27226185]
[1748859357156,0.82770107,104660.0,104650.0,0.24763451]
[1748859357373,0.82770107,104660.0,104650.0,0.27226186]
[1748859357589,0.82770107,104660.0,104650.0,0.27226191]
[1748859357998,0.82770107,104660.0,104650.0,0.24539568]
[1748859358178,0.82770107,104660.0,104650.0,0.27226198]
[1748859358400,0.82770107,104660.0,104650.0,0.26554541]
[1748859358649,0.82770107,104660.0,104650.0,0.27226201]
[1748859359224,0.82770107,104660.0,104650.0,0.23867911]
[1748859359432,0.82770107,104660.0,104650.0,0.27226213]
[1748859359635,0.82770107,104660.0,104650.0,0.27226231]
[1748859359830,0.82770107,104660.0,104650.0,0.25435127]
[1748859360039,0.82770107,104660.0,104650.0,0.23867911]
[1748859360241,0.82770107,104660.0,104650.0,0.2655494]
[1748859360453,0.82770107,104660.0,104650.0,0.23867911]
[1748859360665,1.01879604,104660.0,104650.0,0.24763587]
[1748859360873,0.82770107,104660.0,104650.0,0.22277911]
[1748859361080,0.83725572,104660.0,104650.0,0.22277911]
[1748859361284,1.23897556,104660.0,104650.0,0.22277911]
[1748859361493,1.43007053,104660.0,104650.0,0.23845344]
[1748859361704,1.43962527,104660.0,104650.0,0.22949668]
[1748859361911,1.23897556,104660.0,104650.0,0.23173587]
[1748859362349,1.23897556,104660.0,104650.0,0.24069263]
[1748859362573,1.23897556,104660.0,104650.0,0.2474102]
[1748859362779,1.23897556,104660.0,104650.0,0.22218085]
[1748859362780,1.43007053,104660.0,104650.0,0.22218085]
[1748859362990,1.42726186,104660.0,104650.0,0.01195676]
[1748859363196,1.44266186,104660.0,104650.0,0.01195676]
[1748859363410,1.44266186,104660.0,104650.0,0.02091389]
[1748859363827,1.44266186,104660.0,104650.0,0.03882833]
[1748859364028,1.44266186,104660.0,104650.0,0.02987107]
[1748859364292,0.2169687,104650.0,104640.0,0.00048562]
[1748859364501,0.01911597,104620.0,104610.0,0.21986297]
[1748859364710,1.02339989,104620.0,104610.0,0.21030466]
[1748859364960,0.83223186,104620.0,104610.0,0.25508113]
[1748859365167,0.45412589,104620.0,104610.0,0.34732607]
[1748859365380,0.46396452,104620.0,104610.0,0.34732607]
[1748859366051,0.46396452,104620.0,104610.0,0.25508113]
[1748859366257,0.45440649,104620.0,104610.0,0.25508113]
[1748859366717,0.45440649,104620.0,104610.0,0.27300173]
[1748859366926,0.45440649,104620.0,104610.0,0.27972096]
[1748859367128,0.44484873,104620.0,104610.0,0.28072096]
[1748859367995,0.44484873,104620.0,104610.0,0.28072106]
[1748859368214,0.44484873,104620.0,104610.0,0.25708113]
[1748859368414,0.43529116,104620.0,104610.0,0.25708113]
[1748859368645,0.44484883,104620.0,104610.0,0.27500101]
[1748859368847,0.03323163,104620.0,104610.0,0.28166453]
[1748859369261,0.85346791,104630.0,104620.0,0.21984249]
[1748859369468,0.84391043,104630.0,104620.0,0.2389581]
[1748859370368,0.83435322,104630.0,104620.0,0.2389581]
[1748859370578,0.85346773,104630.0,104620.0,0.22940034]
[1748859370779,0.85446773,104630.0,104620.0,0.22940034]
[1748859371237,0.84491034,104630.0,104620.0,0.2389581]
[1748859371641,0.85446764,104630.0,104620.0,0.22940034]
[1748859371847,0.84491034,104630.0,104620.0,0.2389581]
[1748859372046,0.88343038,104630.0,104620.0,0.2389581]
[1748859372280,1.07458014,104630.0,104620.0,0.21028455]
[1748859372541,1.08413762,104630.0,104620.0,0.22940052]
[1748859373457,0.89298777,104630.0,104620.0,0.23895837]
[1748859374491,1.08413826,104630.0,104620.0,0.22940052]
[1748859375589,0.8929885,104630.0,104620.0,0.22940052]
[1748859375789,0.88343102,104630.0,104620.0,0.23895837]
[1748859376609,1.09058078,104630.0,104620.0,0.22940052]
[1748859376908,1.09058078,104630.0,104620.0,0.21984277]
[1748859377212,1.08102384,104630.0,104620.0,0.21028474]
[1748859377433,1.08102384,104630.0,104620.0,0.21984295]
[1748859377708,1.07146672,104630.0,104620.0,0.21984295]
[1748859378090,1.07146672,104630.0,104620.0,0.22940107]
[1748859378294,1.07146672,104630.0,104620.0,0.2389591]
[1748859379151,1.07146672,104630.0,104620.0,0.22940107]
[1748859379985,1.07146672,104630.0,104620.0,0.2389591]
[1748859380507,1.07146672,104630.0,104620.0,0.22940107]
[1748859380702,1.07146672,104630.0,104620.0,0.2389591]
[1748859381211,1.05546672,104630.0,104620.0,0.2389591]
[1748859382008,1.05546672,104630.0,104620.0,0.22940107]
[1748859382187,1.04590942,104630.0,104620.0,0.21984295]
[1748859382514,1.06140942,104630.0,104620.0,0.21984295]
[1748859382891,1.06140942,104630.0,104620.0,0.22940107]
[1748859383645,0.34,104620.0,104570.0,0.020445]
[1748859383908,0.21042498,104550.0,104540.0,0.00368084]
[1748859384413,0.21044529,104540.0,104510.0,0.04381187]
[1748859384431,0.21044529,104540.0,104480.0,0.0614]
[1748859384432,0.21054581,104490.0,104480.0,0.0614]
[1748859384667,5.92825493,104490.0,104480.0,0.18398571]
[1748859384914,5.92825493,104490.0,104480.0,0.10253648]
[1748859384915,6.7421879,104490.0,104480.0,0.10253648]
[1748859385191,6.7421879,104490.0,104450.0,0.0021061]
[1748859385192,0.54103369,104460.0,104450.0,0.0021061]
[1748859385397,0.54103369,104460.0,104450.0,0.0979604]
[1748859385628,0.95396555,104460.0,104450.0,0.0979604]
[1748859385863,0.95396555,104460.0,104450.0,0.10687864]
[1748859386122,6.0301281,104460.0,104450.0,0.01150852]
[1748859386554,6.0301281,104460.0,104450.0,0.02934974]
[1748859386774,0.55064661,104440.0,104430.0,0.0004734]
[1748859386990,1.29188571,104440.0,104430.0,0.0004734]
[1748859387192,1.78775603,104440.0,104430.0,0.0004734]
[1748859387433,1.88361033,104440.0,104430.0,0.0004734]
[1748859387651,1.89815118,104440.0,104430.0,0.0004734]
[1748859387967,1.49479208,104440.0,104430.0,0.0004734]
[1748859388185,1.48125123,104440.0,104430.0,0.0004734]
[1748859388425,1.48325123,104440.0,104430.0,0.0004734]
[1748859388665,1.48253123,104440.0,104430.0,0.0004734]
[1748859388901,1.39002001,104440.0,104430.0,0.0004734]
[1748859389373,1.39667839,104440.0,104430.0,0.0004734]
[1748859389859,1.39002001,104440.0,104430.0,0.0004734]
[1748859390095,0.98666091,104440.0,104430.0,0.0004734]
[1748859390324,1.14537123,104440.0,104430.0,0.0004734]
[1748859390588,1.38950001,104440.0,104430.0,0.0004734]
[1748859390825,0.98614091,104440.0,104430.0,0.0004734]
[1748859391070,1.38950001,104440.0,104430.0,0.0004734]
[1748859391277,1.38962001,104440.0,104430.0,0.0004734]
[1748859391695,0.64950091,104440.0,104430.0,0.0004734]
[1748859391946,0.35257414,104440.0,104430.0,0.0004734]
[1748859392150,0.58643761,104440.0,104430.0,0.0004734]
[1748859393215,0.68229191,104440.0,104430.0,0.0004734]
[1748859394666,0.55364679,104440.0,104430.0,0.0004734]
[1748859399266,0.74364679,104440.0,104430.0,0.0004734]
[1748859403296,0.83950109,104440.0,104430.0,0.0004734]
[1748859405288,0.533,104440.0,104430.0,0.20156484]
[1748859405492,0.343,104440.0,104430.0,0.64057451]
[1748859405678,0.003,104440.0,104430.0,0.75262881]
[1748859406078,0.003,104440.0,104430.0,0.34926971]
[1748859406311,0.003,104440.0,104430.0,1.19938881]
[1748859406508,0.003,104440.0,104430.0,1.19950881]
[1748859407137,0.343,104440.0,104430.0,1.19950881]
[1748859407339,0.342,104440.0,104430.0,1.19950881]
[1748859407743,0.34,104440.0,104430.0,1.20026881]
[1748859408148,0.34,104440.0,104430.0,0.75362881]
[1748859408303,0.34,104440.0,104430.0,1.20038881]
[1748859408512,0.34,104440.0,104430.0,1.20138881]
[1748859409768,0.34,104440.0,104430.0,1.60138881]
[1748859410139,0.34,104440.0,104430.0,1.19802971]
[1748859410339,0.34,104440.0,104430.0,1.60138881]
[1748859410920,0.02872012,104450.0,104440.0,0.22022102]
[1748859411125,0.03829371,104450.0,104440.0,0.23592102]
[1748859411431,0.04786748,104450.0,104440.0,0.23592102]
[1748859411671,0.04786739,104450.0,104440.0,0.23592102]
[1748859411873,0.00957322,104450.0,104440.0,0.23592102]
[1748859412505,0.01914662,104450.0,104440.0,0.23592102]
[1748859412966,0.56066362,104460.0,104450.0,0.2106268]
[1748859413211,0.56978695,104460.0,104450.0,0.5433868]
[1748859413407,0.56021438,104460.0,104450.0,0.53381312]
[1748859413633,0.56021438,104460.0,104450.0,0.54326698]
[1748859413857,0.56021438,104460.0,104450.0,0.55284075]
[1748859414104,0.57565734,104460.0,104450.0,0.66600075]
[1748859414316,0.59674252,104460.0,104450.0,0.67525425]
[1748859414579,0.59874252,104460.0,104450.0,0.67525425]
[1748859414786,0.60074253,104460.0,104450.0,0.35226793]
[1748859415136,0.60074253,104460.0,104450.0,0.34269443]
[1748859415340,0.6007451,104460.0,104450.0,0.35226793]
[1748859415539,0.59185859,104460.0,104450.0,0.35226738]
[1748859415759,0.60074823,104460.0,104450.0,0.35226738]
[1748859416530,0.59185981,104460.0,104450.0,0.35226738]
[1748859416953,0.21062644,104450.0,104440.0,0.32969192]
[1748859417087,0.02513286,104450.0,104440.0,0.67487516]
[1748859417287,0.02513266,104450.0,104440.0,0.67487516]
[1748859417490,0.01555953,104450.0,104440.0,0.67487516]
[1748859417857,0.03470745,104450.0,104440.0,0.67487516]
[1748859418256,0.03470785,104450.0,104440.0,0.67487516]
[1748859418479,0.02513454,104450.0,104440.0,0.67487516]
[1748859418687,0.01846587,104450.0,104440.0,0.34271516]
[1748859418836,0.01556229,104450.0,104440.0,0.67519516]
[1748859419172,0.36920185,104460.0,104450.0,0.22019993]
[1748859419362,0.39433355,104460.0,104450.0,0.22019993]
[1748859419561,0.38476051,104460.0,104450.0,0.22019993]
[1748859419936,0.38476042,104460.0,104450.0,0.22019993]
[1748859420491,0.39433318,104460.0,104450.0,0.22019993]
[1748859420697,0.39636432,104460.0,104450.0,0.22019993]
[1748859420821,0.39836414,104460.0,104450.0,0.22019993]
[1748859421031,0.37152522,104460.0,104450.0,0.22019993]
[1748859421228,0.01339239,104460.0,104450.0,0.22019993]
[1748859421438,0.02007338,104460.0,104450.0,0.22019993]
[1748859421679,0.02007187,104460.0,104450.0,0.22019993]
[1748859421900,0.02007187,104460.0,104450.0,0.75201333]
[1748859422167,0.02007187,104460.0,104450.0,1.08449333]
[1748859422367,0.0133769,104460.0,104450.0,0.34865423]
[1748859422612,0.02004579,104460.0,104450.0,0.44517423]
[1748859422781,0.0133769,104460.0,104450.0,0.77789423]
[1748859422990,0.00448412,104460.0,104450.0,0.77789423]
[1748859423121,0.00448412,104460.0,104450.0,1.18125333]
[1748859423321,0.01337244,104460.0,104450.0,1.19685333]
[1748859423527,0.01137244,104460.0,104450.0,1.19685333]
[1748859423799,0.01803896,104460.0,104450.0,1.19685333]
[1748859424017,0.00248412,104460.0,104450.0,1.19785333]
[1748859424156,0.00248412,104460.0,104450.0,0.79449423]
[1748859424157,0.01137213,104460.0,104450.0,0.79449423]
[1748859424363,0.01137213,104460.0,104450.0,1.19685333]
[1748859424565,0.00048412,104460.0,104450.0,1.19685333]
[1748859424775,0.00048412,104460.0,104450.0,1.21739418]
[1748859424975,0.00048412,104460.0,104450.0,1.55739418]
[1748859425304,0.00048412,104460.0,104450.0,1.57235633]
[1748859425501,0.00048412,104460.0,104450.0,1.60109533]
[1748859425703,0.00048412,104460.0,104450.0,1.59809533]
[1748859425916,0.00048412,104460.0,104450.0,1.60209533]
[1748859426910,0.00048412,104460.0,104450.0,1.59909533]
[1748859427118,0.00048412,104460.0,104450.0,1.60309533]
[1748859427317,0.00048412,104460.0,104450.0,1.14291448]
[1748859427516,0.00048412,104460.0,104450.0,1.51417548]
[1748859427723,0.00048412,104460.0,104450.0,1.56033548]
[1748859427890,0.00048412,104460.0,104450.0,1.11417548]
[1748859428066,0.00048412,104460.0,104450.0,1.15689638]
[1748859428505,0.00048412,104460.0,104450.0,1.14193423]
[1748859428716,0.00048412,104460.0,104450.0,1.54529333]
[1748859429115,0.00048412,104460.0,104450.0,0.75921333]
[1748859429318,0.00048412,104460.0,104450.0,0.80225423]
[1748859429779,0.00048412,104460.0,104450.0,0.80221423]
[1748859430197,0.00048412,104460.0,104450.0,0.35585423]
[1748859430407,0.00048412,104460.0,104450.0,0.80213423]
[1748859434132,0.00048412,104460.0,104450.0,1.20549333]
[1748859435552,0.00048412,104460.0,104450.0,1.22335523]
[1748859435756,0.00048412,104460.0,104450.0,0.80213423]
[1748859436689,0.00048412,104460.0,104450.0,1.20549333]
[1748859437707,0.00048412,104460.0,104450.0,1.22335594]
[1748859438420,0.00048412,104460.0,104450.0,1.22335756]
[1748859438557,0.00048412,104460.0,104450.0,0.81999846]
[1748859438756,0.00048412,104460.0,104450.0,0.81999843]
[1748859439773,0.00048412,104460.0,104450.0,0.82000058]
[1748859440015,0.00048412,104460.0,104450.0,0.80213423]
[1748859440221,0.00048412,104460.0,104450.0,0.82000115]
[1748859440422,0.00048412,104460.0,104450.0,1.20549333]
[1748859440647,0.00048412,104460.0,104450.0,0.37291993]
[1748859440821,0.00048412,104460.0,104450.0,1.12554589]
[1748859441263,0.00048412,104460.0,104450.0,0.81804109]
[1748859441461,0.00048412,104460.0,104450.0,0.37372109]
[1748859441666,0.00048412,104460.0,104450.0,0.80232109]
[1748859442437,0.00048412,104460.0,104450.0,0.34192632]
[1748859442784,0.00048412,104460.0,104450.0,0.34192679]
[1748859442954,0.01005633,104460.0,104450.0,0.34192679]
[1748859443321,0.00048412,104460.0,104450.0,0.34192679]
[1748859443516,0.01005633,104460.0,104450.0,0.34193223]
[1748859444140,0.01005633,104460.0,104450.0,0.34193206]
[1748859444629,0.02920121,104460.0,104450.0,0.32405423]
[1748859444884,0.03877388,104460.0,104450.0,0.22819993]
[1748859445034,0.05537388,104460.0,104450.0,0.22819993]
[1748859445237,0.05537379,104460.0,104450.0,0.22819993]
[1748859446104,0.06494664,104460.0,104450.0,0.22819993]
[1748859446293,0.05537379,104460.0,104450.0,0.22019993]
[1748859446493,0.05537379,104460.0,104450.0,0.22319993]
[1748859446652,0.05537388,104460.0,104450.0,0.22619993]
[1748859447054,0.04580112,104460.0,104450.0,0.22619993]
[1748859447257,0.01005633,104460.0,104450.0,0.22619993]
[1748859447639,0.00048412,104460.0,104450.0,0.24408778]
[1748859447862,0.01962901,104460.0,104450.0,0.24408778]
[1748859448718,0.02920168,104460.0,104450.0,0.24408778]
[1748859449308,0.01962901,104460.0,104450.0,0.24409182]
[1748859449905,0.01899479,104460.0,104450.0,0.24409687]
[1748859450345,0.02856737,104460.0,104450.0,0.24409687]
[1748859450663,0.01899479,104460.0,104450.0,0.24409573]
[1748859451550,0.01899479,104460.0,104450.0,0.24409857]
[1748859452445,0.01899479,104460.0,104450.0,0.22619993]
[1748859452591,0.01899479,104460.0,104450.0,0.24409636]
[1748859452791,0.0094223,104460.0,104450.0,0.24409636]
[1748859453004,0.35914296,104470.0,104460.0,0.22017867]
[1748859453200,0.37828675,104470.0,104460.0,0.22027172]
[1748859453423,0.57930129,104470.0,104460.0,0.22027172]
[1748859453622,0.59500202,104470.0,104460.0,0.22027181]
[1748859453841,0.38441536,104470.0,104460.0,0.22984421]
[1748859454041,0.39398739,104470.0,104460.0,0.22984421]
[1748859454294,0.37484287,104470.0,104460.0,0.23084421]
[1748859454497,0.35914287,104470.0,104460.0,0.23084421]
[1748859454709,0.34,104470.0,104460.0,0.23084421]
[1748859454910,0.3495713,104470.0,104460.0,0.23084421]
[1748859455471,0.3495713,104470.0,104460.0,0.23088821]
[1748859455725,0.02607047,104480.0,104470.0,0.22015777]
[1748859455872,0.3947828,104480.0,104470.0,0.22015777]
[1748859456073,0.38521178,104480.0,104470.0,0.22015777]
[1748859456280,0.3947828,104480.0,104470.0,0.22015777]
[1748859457298,0.79792486,104480.0,104470.0,0.22015777]
[1748859458122,0.79792477,104480.0,104470.0,0.22015777]
[1748859458522,0.77185384,104480.0,104470.0,0.22015777]
[1748859458730,0.75271253,104480.0,104470.0,0.22015777]
[1748859458929,0.34957047,104480.0,104470.0,0.22015777]
[1748859459498,0.35914113,104480.0,104470.0,0.22015777]